{"text_format":"1","workbook":"xlsx","n_sheets":5,"sheets":["Formulario Apertura","Anexo Nóminas","AUX","Anexo Rep. Legal","Anexo de Conformidad"],"not_rendered":{"charts":0,"images":5,"macros":1,"external_links":0,"defined_names":11,"comments":0,"pivot_tables":0},"unopened":[],"bounds":{"document_bytes":16777216,"sheet_cells":100000,"rows_first":2000,"rows_last":500,"rows_between":2000,"halvings":0,"cell_chars":16384,"cell_head_chars":4096},"cells_cut":0,"cells_raw":0,"read":"whole","date_system":"1900"}

{"sheet":"Formulario Apertura","index":0,"n_rows":352,"n_cols":71,"rows_kept":352,"cut":false,"hidden":false,"merged":[[3,2,3,9],[5,0,5,1],[5,2,5,9],[81,12,81,13],[91,12,91,13],[91,0,91,2],[91,14,91,19],[89,12,89,13],[89,14,89,19],[89,3,89,11],[81,0,81,2],[81,6,81,7],[89,0,89,2],[87,14,87,19],[87,6,87,7],[87,8,87,11],[87,0,87,2],[83,6,83,7],[85,12,85,16],[83,14,83,19],[85,6,85,7],[85,3,85,5],[85,8,85,11],[9,0,9,20],[10,0,10,19],[11,2,11,6],[11,8,11,12],[11,14,11,19],[85,0,85,2],[1,0,1,20],[256,0,256,20],[248,0,248,20],[72,0,72,10],[72,11,72,14],[74,0,74,19],[104,0,104,19],[105,0,105,2],[105,3,105,11],[105,12,105,13],[105,14,105,17],[96,0,96,19],[97,18,97,19],[99,3,99,8],[97,0,99,2],[97,10,99,11],[97,12,97,17],[3,0,3,1],[207,0,207,19],[76,0,76,3],[76,10,76,11],[76,4,76,8],[76,12,76,13],[102,0,102,3],[102,4,102,8],[102,10,102,11],[102,12,102,13],[128,0,128,3],[128,4,128,8],[128,10,128,11],[128,12,128,13],[154,0,154,3],[154,4,154,8],[86,0,86,19],[84,0,84,19],[83,3,83,5],[83,12,83,13],[90,0,90,19],[79,0,79,2],[88,0,88,19],[95,14,95,19],[102,14,102,19],[103,0,103,19],[87,3,87,5],[87,12,87,13],[83,8,83,11],[83,0,83,2],[71,0,71,19],[79,14,79,17],[79,3,79,11],[79,12,79,13],[100,0,100,19],[101,0,101,19],[92,0,92,19],[69,0,69,19],[67,15,67,16],[77,0,77,19],[75,0,75,19],[41,0,41,19],[43,11,43,14],[43,0,43,10],[64,15,64,16],[66,15,66,16],[62,15,62,16],[63,15,63,16],[66,0,66,1],[60,9,60,10],[60,12,60,14],[64,9,64,10],[64,12,64,14],[46,0,47,1],[46,6,47,6],[46,7,47,7],[46,19,47,19],[46,17,47,18],[13,0,13,19],[7,2,7,4],[7,5,7,6],[7,7,7,9],[31,11,31,14],[31,15,31,16],[32,0,32,5],[32,6,32,7],[32,11,32,14],[32,15,32,16],[25,11,25,14],[25,15,25,16],[26,0,26,5],[26,6,26,7],[28,6,28,7],[28,11,28,14],[28,15,28,16],[8,0,8,19],[29,0,29,5],[29,6,29,7],[29,11,29,14],[29,15,29,16],[26,11,26,14],[26,15,26,16],[27,0,27,5],[33,0,33,5],[33,6,33,7],[33,11,33,14],[33,15,33,16],[31,0,31,5],[31,6,31,7],[27,6,27,7],[27,11,27,14],[27,15,27,16],[28,0,28,5],[30,0,30,5],[30,6,30,7],[38,15,38,16],[34,15,34,16],[35,0,35,5],[35,6,35,7],[35,11,35,14],[35,15,35,16],[36,0,36,5],[34,0,34,5],[34,6,34,7],[38,6,38,7],[36,6,36,7],[36,11,36,14],[36,15,36,16],[37,0,37,5],[37,15,37,16],[37,11,37,14],[38,0,38,5],[34,11,34,14],[2,0,2,19],[12,0,12,19],[16,0,16,19],[39,0,39,19],[45,0,45,19],[70,0,70,19],[78,0,78,19],[23,11,23,14],[23,15,23,16],[24,0,24,5],[24,6,24,7],[24,11,24,14],[24,15,24,16],[14,0,14,6],[14,11,14,14],[19,6,19,7],[21,6,21,7],[20,0,20,5],[20,6,20,7],[37,6,37,7],[30,11,30,14],[30,15,30,16],[25,0,25,5],[25,6,25,7],[350,11,350,18],[351,11,351,18],[328,13,328,18],[328,1,328,5],[350,2,350,8],[338,2,349,8],[333,0,333,19],[338,11,349,18],[336,0,336,19],[334,1,334,6],[331,0,331,19],[328,7,328,11],[329,2,329,5],[329,8,329,11],[329,14,329,18],[334,7,334,10],[332,0,332,20],[17,17,17,19],[17,9,18,9],[17,10,18,10],[17,11,18,14],[17,15,18,16],[17,6,18,7],[17,8,18,8],[22,6,22,7],[23,0,23,5],[23,6,23,7],[22,11,22,14],[22,0,22,5],[20,11,20,14],[20,15,20,16],[21,0,21,5],[17,0,18,5],[19,0,19,5],[19,15,19,16],[21,15,21,16],[22,15,22,16],[19,11,19,14],[21,11,21,14],[153,0,153,19],[163,12,163,16],[165,6,165,7],[142,0,142,19],[136,0,136,19],[161,0,161,2],[159,8,159,11],[159,12,159,13],[159,14,159,19],[161,3,161,5],[161,6,161,7],[161,8,161,11],[143,14,143,19],[162,0,162,19],[157,0,157,2],[157,3,157,11],[144,0,144,19],[145,3,145,11],[145,12,145,13],[141,3,141,11],[154,14,154,19],[161,12,161,13],[157,14,157,17],[155,0,155,19],[134,0,134,19],[131,14,131,17],[132,0,132,19],[119,14,119,19],[120,0,120,19],[122,0,122,19],[130,0,130,19],[141,14,141,19],[143,0,143,2],[143,12,143,13],[141,0,141,2],[133,14,133,19],[40,0,40,19],[38,11,38,14],[93,3,93,11],[93,12,93,13],[93,14,93,19],[137,8,137,11],[137,12,137,16],[93,0,93,2],[95,0,95,2],[68,0,68,19],[65,15,65,16],[82,0,82,19],[81,8,81,11],[81,14,81,19],[46,15,47,16],[48,15,48,16],[46,8,47,8],[95,3,95,11],[95,12,95,13],[107,12,107,13],[107,14,107,19],[76,14,76,19],[121,3,121,11],[121,12,121,13],[106,0,106,19],[107,0,107,2],[107,6,107,7],[107,8,107,11],[108,0,108,19],[109,0,109,2],[109,3,109,5],[109,6,109,7],[109,8,109,11],[109,12,109,13],[109,14,109,19],[114,0,114,19],[115,0,115,2],[115,3,115,11],[115,12,115,13],[80,0,80,19],[237,15,239,19],[146,0,146,19],[147,0,147,2],[147,3,147,11],[147,12,147,13],[147,14,147,19],[156,0,156,19],[161,14,161,19],[160,0,160,19],[157,12,157,13],[164,0,164,19],[165,0,165,2],[159,0,159,2],[159,6,159,7],[158,0,158,19],[163,0,163,2],[163,3,163,5],[163,6,163,7],[163,8,163,11],[111,0,111,2],[111,3,111,5],[111,6,111,7],[111,8,111,11],[111,12,111,16],[112,0,112,19],[113,0,113,2],[113,3,113,5],[113,6,113,7],[113,8,113,11],[113,12,113,13],[113,14,113,19],[154,10,154,11],[154,12,154,13],[141,12,141,13],[118,0,118,19],[135,6,135,7],[135,8,135,11],[119,12,119,13],[139,0,139,2],[139,3,139,5],[139,6,139,7],[139,8,139,11],[139,12,139,13],[128,14,128,19],[137,0,137,2],[127,0,127,19],[129,0,129,19],[121,0,121,2],[119,3,119,11],[131,0,131,2],[131,3,131,11],[131,12,131,13],[145,14,145,19],[138,0,138,19],[121,14,121,19],[165,8,165,11],[165,12,165,13],[165,14,165,19],[166,0,166,19],[167,0,167,2],[167,3,167,11],[167,12,167,13],[167,14,167,19],[165,3,165,5],[168,0,168,19],[169,0,169,2],[169,12,169,13],[169,14,169,19],[182,0,182,19],[183,0,183,2],[183,3,183,11],[183,12,183,13],[183,14,183,17],[179,0,179,19],[181,0,181,19],[180,0,180,3],[180,4,180,8],[180,10,180,11],[180,12,180,13],[169,3,169,5],[169,6,169,7],[169,8,169,11],[180,14,180,19],[184,0,184,19],[170,0,170,19],[171,3,171,11],[171,12,171,13],[171,14,171,19],[172,0,172,19],[173,0,173,2],[173,3,173,11],[173,12,173,13],[173,14,173,19],[192,0,192,19],[193,0,193,2],[185,0,185,2],[185,6,185,7],[185,8,185,11],[185,12,185,13],[185,14,185,19],[186,0,186,19],[187,0,187,2],[187,3,187,5],[187,6,187,7],[187,8,187,11],[187,12,187,13],[187,14,187,19],[188,0,188,19],[189,0,189,2],[189,3,189,5],[189,6,189,7],[189,8,189,11],[189,12,189,16],[190,0,190,19],[191,0,191,2],[191,3,191,5],[191,6,191,7],[191,8,191,11],[191,12,191,13],[191,14,191,19],[193,14,193,19],[194,0,194,19],[195,0,195,2],[195,12,195,13],[195,14,195,19],[195,3,195,5],[195,6,195,7],[195,8,195,11],[206,0,206,3],[206,4,206,8],[206,10,206,11],[206,12,206,13],[205,0,205,19],[206,14,206,19],[199,3,199,11],[199,12,199,13],[199,14,199,19],[125,36,125,37],[126,0,126,19],[148,0,148,19],[149,0,151,2],[149,3,149,8],[149,10,151,11],[149,12,149,17],[149,18,149,19],[151,3,151,8],[151,12,151,19],[151,36,151,37],[123,0,125,2],[123,3,123,8],[123,10,125,11],[123,12,123,17],[123,18,123,19],[125,3,125,8],[125,12,125,19],[135,12,135,13],[135,14,135,19],[135,0,135,2],[135,3,135,5],[139,14,139,19],[140,0,140,19],[177,36,177,37],[178,0,178,19],[200,0,200,19],[201,0,203,2],[201,3,201,8],[201,10,203,11],[201,12,201,17],[201,18,201,19],[203,3,203,8],[203,12,203,19],[203,36,203,37],[175,0,177,2],[175,3,175,8],[175,10,177,11],[175,12,175,17],[175,18,175,19],[177,3,177,8],[177,12,177,19],[196,0,196,19],[197,3,197,11],[197,12,197,13],[197,14,197,19],[198,0,198,19],[199,0,199,2],[229,36,229,37],[230,0,230,19],[241,0,241,19],[244,0,244,19],[242,3,242,4],[242,6,242,7],[242,9,242,10],[242,0,242,2],[227,0,229,2],[227,3,227,8],[227,10,229,11],[227,12,227,17],[227,18,227,19],[229,3,229,8],[229,12,229,19],[238,0,238,2],[236,15,236,19],[236,9,236,11],[237,0,237,2],[237,6,237,8],[237,9,237,11],[237,3,237,5],[236,3,236,5],[236,6,236,8],[327,1,327,5],[327,7,327,11],[308,7,308,11],[307,1,307,5],[251,3,251,10],[309,2,309,5],[309,8,309,11],[309,14,309,18],[312,1,326,5],[252,3,252,5],[252,6,252,7],[254,0,254,19],[263,10,263,14],[263,16,263,19],[252,8,252,10],[272,0,272,19],[283,1,283,19],[291,1,306,5],[288,0,288,19],[287,1,287,19],[284,0,284,19],[311,1,311,19],[289,4,289,6],[289,12,289,14],[327,13,327,18],[220,0,220,19],[221,0,221,2],[221,12,221,13],[221,14,221,19],[236,12,236,14],[240,0,240,19],[239,3,239,5],[239,6,239,8],[239,9,239,11],[237,12,239,14],[246,0,246,19],[252,14,252,15],[252,11,252,13],[252,16,252,19],[252,0,252,2],[250,11,250,19],[242,16,242,19],[251,11,251,19],[269,1,269,19],[221,8,221,11],[225,3,225,11],[225,12,225,13],[225,14,225,19],[307,7,307,11],[308,13,308,18],[285,0,285,19],[286,0,286,19],[308,1,308,5],[307,13,307,18],[291,7,306,11],[291,13,306,18],[274,1,274,19],[279,1,279,19],[276,1,276,19],[267,10,267,19],[259,1,259,7],[265,1,265,7],[267,1,267,7],[261,1,261,7],[263,1,263,7],[3,11,3,13],[3,14,3,15],[3,17,3,18],[5,11,5,13],[5,14,5,15],[5,16,5,19],[7,11,7,19],[204,0,204,19],[226,0,226,19],[152,0,152,19],[174,0,174,19],[97,3,97,8],[99,12,99,19],[222,0,222,19],[223,0,223,2],[223,3,223,11],[223,12,223,13],[217,3,217,5],[312,7,326,11],[312,13,326,18],[250,1,250,2],[215,3,215,5],[215,6,215,7],[215,8,215,11],[215,12,215,16],[282,0,282,19],[277,1,277,19],[278,1,278,19],[253,3,253,10],[253,11,253,19],[253,0,253,2],[242,12,242,13],[251,0,251,2],[238,3,238,5],[238,6,238,8],[238,9,238,11],[243,3,243,19],[281,0,281,19],[271,0,271,19],[273,0,273,19],[275,0,275,19],[280,0,280,19],[117,12,117,13],[208,0,208,19],[209,0,209,2],[221,3,221,5],[221,6,221,7],[231,0,231,19],[250,3,250,10],[232,0,232,19],[233,0,233,19],[235,0,235,19],[211,8,211,11],[211,12,211,13],[211,14,211,19],[234,0,234,19],[239,0,239,2],[245,0,245,19],[209,3,209,11],[209,12,209,13],[209,14,209,17],[210,0,210,19],[211,0,211,2],[211,6,211,7],[193,3,193,11],[193,12,193,13],[223,14,223,19],[224,0,224,19],[225,0,225,2],[212,0,212,19],[217,6,217,7],[217,8,217,11],[217,12,217,13],[217,14,217,19],[218,0,218,19],[219,0,219,2],[219,3,219,11],[219,12,219,13],[219,14,219,19],[213,0,213,2],[213,3,213,5],[213,6,213,7],[213,12,213,13],[213,14,213,19],[214,0,214,19],[215,0,215,2],[117,14,117,19],[213,8,213,11],[216,0,216,19],[217,0,217,2],[91,3,91,5],[91,6,91,7],[91,8,91,11],[117,3,117,5],[117,6,117,7],[117,8,117,11],[143,3,143,5],[143,6,143,7],[143,8,143,11],[110,0,110,19],[137,3,137,5],[137,6,137,7],[94,0,94,19],[133,0,133,2],[133,6,133,7],[133,8,133,11],[133,12,133,13],[115,14,115,19],[116,0,116,19],[117,0,117,2],[46,12,47,14],[46,11,47,11],[46,9,47,10],[46,5,47,5],[46,2,47,4],[60,0,60,1],[61,0,61,1],[62,0,62,1],[63,0,63,1],[48,9,48,10],[48,12,48,14],[51,9,51,10],[51,12,51,14],[54,9,54,10],[54,12,54,14],[57,9,57,10],[57,12,57,14],[61,9,61,10],[61,12,61,14],[64,0,64,1],[65,0,65,1],[48,0,48,1],[49,0,49,1],[50,0,50,1],[51,0,51,1],[52,0,52,1],[53,0,53,1],[54,0,54,1],[55,0,55,1],[56,0,56,1],[67,0,67,1],[48,2,48,4],[49,2,49,4],[50,2,50,4],[51,2,51,4],[52,2,52,4],[53,2,53,4],[54,2,54,4],[55,2,55,4],[56,2,56,4],[57,2,57,4],[58,2,58,4],[59,2,59,4],[60,2,60,4],[61,2,61,4],[62,2,62,4],[63,2,63,4],[64,2,64,4],[65,2,65,4],[66,2,66,4],[67,2,67,4],[57,0,57,1],[58,0,58,1],[59,0,59,1],[48,17,48,18],[49,9,49,10],[49,12,49,14],[49,17,49,18],[50,9,50,10],[50,12,50,14],[50,15,50,16],[50,17,50,18],[49,15,49,16],[51,15,51,16],[51,17,51,18],[52,9,52,10],[52,12,52,14],[52,15,52,16],[52,17,52,18],[53,9,53,10],[53,12,53,14],[53,15,53,16],[53,17,53,18],[54,17,54,18],[55,9,55,10],[55,12,55,14],[55,17,55,18],[56,9,56,10],[56,12,56,14],[56,17,56,18],[54,15,54,16],[55,15,55,16],[56,15,56,16],[57,17,57,18],[58,9,58,10],[58,12,58,14],[58,17,58,18],[59,9,59,10],[59,12,59,14],[59,17,59,18],[57,15,57,16],[60,17,60,18],[58,15,58,16],[59,15,59,16],[60,15,60,16],[61,17,61,18],[62,9,62,10],[62,12,62,14],[62,17,62,18],[63,9,63,10],[63,12,63,14],[63,17,63,18],[61,15,61,16],[64,17,64,18],[65,9,65,10],[65,12,65,14],[65,17,65,18],[66,9,66,10],[66,12,66,14],[66,17,66,18],[67,9,67,10],[67,12,67,14],[67,17,67,18]]}
[null,null,null,null,null,null,null,null,null,null,null,null,null,null,null,null,null,null,null,null,null,null,null,null,null,null,null,null,null,null,null,null,null,null,null,null,null,null,null,null,null,null,null,null,null,null,null,null,null,null,null,null,null,null,null,null,null,null,null,null,null,null,null,null,null,null,null,null,1,null,1]
["DATOS DEL CLIENTE"]
[]
["Razón Social de la Persona Jurídica:",null,null,null,null,null,null,null,null,null,"NIT:",null,null,null,"¿Solicitante es cliente del Banco?:",null,null,"¿Requiere actualizar datos?:"]
[]
["Domicilio legal:",null,"Completar de forma detallada: \"Zona / Calle o Avenida / Nro. Casa o Dpto./ Referencia de ubicación (si corresponde)\"",null,null,null,null,null,null,null,"Teléfono celular:",null,null,null,"Teléfono fijo:"]
[]
["Correo electrónico:",null,null,null,null,"Objeto o Activdad de la empresa:",null,null,null,null,"Tipo de Sociedad:"]
[]
["INFORMACIÓN ADICIONAL DE LA EMPRESA (Complete la información, según corresponda):"]
[]
[null,null,"¿La actividad económica del cliente corresponde al sector inmobiliario?",null,null,null,null,null,"¿Efectúa transacciones por cuenta de sus clientes para la compra y/o venta de bienes inmuebles?",null,null,null,null,null,"¿Cuenta con una copia del Certificado de Registro como Sujeto Obligado ante la UIF?"]
[]
[]
["NÓMINA DE MIEMBROS DEL DIRECTORIO / PERSONAL EJECUTIVO: (*)",null,null,null,null,null,null,null,null,null,null,"Seleccione el Nro. de personas que desea registrar: "]
[]
[]
["Nombre y Apellido:",null,null,null,null,null,"Número de Documento de Identidad",null,"Ext.","Nacionalidad","Actividad \nEconómica","Dirección del Domicilio particular",null,null,null,"Cargo",null,"Fecha de Nacimiento"]
[null,null,null,null,null,null,null,null,null,null,null,null,null,null,null,null,null,"DD","MM","AAAA"]
[]
[]
[]
[]
[]
[]
[]
[]
[]
[]
[]
[]
[]
[]
[]
[]
[]
[]
[]
[]
["rgr"]
["(*) En caso de requerirse filas adicionales a las desplegadas, para el registro de Miembros del Directorio o Personal Ejecutivo, se debe completar el anexo \"Nóminas\" adjunto al presente formulario."]
[]
[]
["NÓMINA DE SOCIOS, ACCIONISTAS, ASOCIADOS O MIEMBROS QUE TENGAN UNA PARTICIPACIÓN IGUAL O MAYOR A 10%: (*) (**)",null,null,null,null,null,null,null,null,null,null,"Seleccione el Nro. de personas que desea registrar: "]
[]
[]
["Tipo de Persona",null,"Nombre y Apellido / Razón Social:",null,null,"Número de Documento de Identidad / NIT","Ext.","Fecha de vencimiento CI","Nacionalidad","Estado Civil (P.Natural) / \nTipo de Sociedad (P.Jurídica)",null,"Actividad \nEconómica","Dirección del Domicilio particular",null,null,"Tel. Domicilio o Celular",null,"% Participación",null,"Fecha de Nacimiento\n(dd/mm/aaaa)"]
[]
[]
[]
[]
[]
[]
[]
[]
[]
[]
[]
[]
[]
[]
[]
[]
[]
[]
[]
[]
[]
["(*) En caso que el socio o accionista de la persona jurídica sea otra persona jurídica se debe adjuntar la nómina de socios, accionistas o miembros que en última instancia (persona natural) llegan a tener participación accionaria o societaria igual o mayor al 10% del capital social de esta empresa, o miembros que ostentan el control de la persona jurídica, indicando el nombre completo, número de documento de identidad y porcentaje de participación."]
["(**) En caso de requerirse filas adicionales a las desplegadas, para el registro de Socios, Accionistas, Asociados o Miembros, se debe completar el anexo \"Nóminas\" adjunto al presente formulario."]
[]
[]
["DATOS DEL(OS) REPRESENTANTE(S) LEGAL(ES) (*):",null,null,null,null,null,null,null,null,null,null,"Seleccione el Nro. de Rep. Legales que desea registrar: "]
[]
[]
[]
["REPRESENTANTE LEGAL 1",null,null,null,"¿El Representante Legal ya es cliente del Banco?  ",null,null,null,null,null,"Número de Cliente ",null,null,null,{"$f":"IF(J77=\"Sí\",\"(este campo puede ser de llenado manual por Servicio al Cliente)\",\"\")","v":""}]
[]
[]
["Nombres  y Apellidos:",null,null,null,null,null,null,null,null,null,null,null,"N° documento de Identidad:",null,null,null,null,null,"Ext.:"]
[]
["Fecha de Nacimiento:",null,null,null,null,null,"Nacionalidad:",null,null,null,null,null,"País de Residencia:"]
[]
["Profesión / ocupación:",null,null,null,null,null,"Situación laboral:",null,null,null,null,null,"Ingreso Mensual:"]
[]
["Lugar de trabajo:",null,null,null,null,null,"Cargo:",null,null,null,null,null,"Fecha de ingreso al lugar de trabajo / inicio de actividad económica:"]
[]
["Estado civil ",null,null,null,null,null,{"$f":"IF(D88=\"Casado(a)\",\"Nombre Cónyuge:\",\"\")","v":""},null,null,null,null,null,{"$f":"IF(D88=\"Casado(a)\",\"Actividad Económica Cónyuge:\",\"\")","v":""}]
[]
["Dirección domicilio:",null,null,null,null,null,null,null,null,null,null,null,"Dirección Laboral:"]
[]
["Teléfono Fijo / Celular:",null,null,null,null,null,"Correo electrónico:",null,null,null,null,null,"Teléfono laboral:"]
[]
["Referencia Personal:",null,null,null,null,null,null,null,null,null,null,null,"Teléfono Fijo / Celular:\n(De la Referencia)"]
[]
["Ref. Comercial, laboral o bancaria: (**)",null,null,null,null,null,null,null,null,null,null,null,"Teléfono Fijo / Celular:\n(De la Referencia)"]
[]
["DILIGENCIA ADICIONAL:",null,null,"¿Es portador de tarjeta verde, pasaporte norteamericano, nacido o hijo de ciudadano de los Estados Unidos de Norteamérica?",null,null,null,null,null,null,"INFORMACIÓN ADICIONAL DE CLIENTE PEP:",null,"¿El representante legal es Persona Expuesta Políticamente (PEP)?"]
[]
[null,null,null,"¿Ha permanecido más de 180 días en un año o promedio de 120 días al año durante los últimos 3 años en los Estados Unidos de Norteamérica?"]
[]
[]
["REPRESENTANTE LEGAL 2",null,null,null,"¿El Representante Legal ya es cliente del Banco?  ",null,null,null,null,null,"Número de Cliente ",null,null,null,{"$f":"IF(J103=\"Sí\",\"(este campo puede ser de llenado manual por Servicio al Cliente)\",\"\")","v":""}]
[]
[]
["Nombres  y Apellidos:",null,null,null,null,null,null,null,null,null,null,null,"N° documento de Identidad:",null,null,null,null,null,"Ext.:"]
[]
["Fecha de Nacimiento:",null,null,null,null,null,"Nacionalidad:",null,null,null,null,null,"País de Residencia:"]
[]
["Profesión / ocupación:",null,null,null,null,null,"Situación laboral:",null,null,null,null,null,"Ingreso Mensual:"]
[]
["Lugar de trabajo:",null,null,null,null,null,"Cargo:",null,null,null,null,null,"Fecha de ingreso al lugar de trabajo / inicio de actividad económica:"]
[]
["Estado civil ",null,null,null,null,null,{"$f":"IF($D114=\"Casado(a)\",\"Nombre Cónyuge:\",\"\")","v":""},null,null,null,null,null,{"$f":"IF($D114=\"Casado(a)\",\"Actividad Económica Cónyuge:\",\"\")","v":""}]
[]
["Dirección domicilio:",null,null,null,null,null,null,null,null,null,null,null,"Dirección Laboral:"]
[]
["Teléfono Fijo / Celular:",null,null,null,null,null,"Correo electrónico:",null,null,null,null,null,"Teléfono laboral:"]
[]
["Referencia Personal:",null,null,null,null,null,null,null,null,null,null,null,"Teléfono Fijo / Celular:\n(De la Referencia)"]
[]
["Ref. Comercial, laboral o bancaria: (**)",null,null,null,null,null,null,null,null,null,null,null,"Teléfono Fijo / Celular:\n(De la Referencia)"]
[]
["DILIGENCIA ADICIONAL:",null,null,"¿Es portador de tarjeta verde, pasaporte norteamericano, nacido o hijo de ciudadano de los Estados Unidos de Norteamérica?",null,null,null,null,null,null,"INFORMACIÓN ADICIONAL DE CLIENTE PEP:",null,"¿El representante legal es Persona Expuesta Políticamente (PEP)?"]
[]
[null,null,null,"¿Ha permanecido más de 180 días en un año o promedio de 120 días al año durante los últimos 3 años en los Estados Unidos de Norteamérica?"]
[]
[]
["REPRESENTANTE LEGAL 3",null,null,null,"¿El Representante Legal ya es cliente del Banco?  ",null,null,null,null,null,"Número de Cliente ",null,null,null,{"$f":"IF(J129=\"Sí\",\"(este campo puede ser de llenado manual por Servicio al Cliente)\",\"\")","v":""}]
[]
[]
["Nombres  y Apellidos:",null,null,null,null,null,null,null,null,null,null,null,"N° documento de Identidad:",null,null,null,null,null,"Ext.:"]
[]
["Fecha de Nacimiento:",null,null,null,null,null,"Nacionalidad:",null,null,null,null,null,"País de Residencia:"]
[]
["Profesión / ocupación:",null,null,null,null,null,"Situación laboral:",null,null,null,null,null,"Ingreso Mensual:"]
[]
["Lugar de trabajo:",null,null,null,null,null,"Cargo:",null,null,null,null,null,"Fecha de ingreso al lugar de trabajo / inicio de actividad económica:"]
[]
["Estado Civil:",null,null,null,null,null,{"$f":"IF($D140=\"Casado(a)\",\"Nombre Cónyuge:\",\"\")","v":""},null,null,null,null,null,{"$f":"IF($D140=\"Casado(a)\",\"Actividad Económica Cónyuge:\",\"\")","v":""}]
[]
["Dirección domicilio:",null,null,null,null,null,null,null,null,null,null,null,"Dirección Laboral:"]
[]
["Teléfono Fijo / Celular:",null,null,null,null,null,"Correo electrónico:",null,null,null,null,null,"Teléfono laboral:"]
[]
["Referencia Personal:",null,null,null,null,null,null,null,null,null,null,null,"Teléfono Fijo / Celular:\n(De la Referencia)"]
[]
["Ref. Comercial, laboral o bancaria: (**)",null,null,null,null,null,null,null,null,null,null,null,"Teléfono Fijo / Celular:\n(De la Referencia)"]
[]
["DILIGENCIA ADICIONAL:",null,null,"¿Es portador de tarjeta verde, pasaporte norteamericano, nacido o hijo de ciudadano de los Estados Unidos de Norteamérica?",null,null,null,null,null,null,"INFORMACIÓN ADICIONAL DE CLIENTE PEP:",null,"¿El representante legal es Persona Expuesta Políticamente (PEP)?"]
[]
[null,null,null,"¿Ha permanecido más de 180 días en un año o promedio de 120 días al año durante los últimos 3 años en los Estados Unidos de Norteamérica?"]
[]
[]
["REPRESENTANTE LEGAL 4",null,null,null,"¿El Representante Legal ya es cliente del Banco?  ",null,null,null,null,null,"Número de Cliente ",null,null,null,{"$f":"IF(J155=\"Sí\",\"(este campo puede ser de llenado manual por Servicio al Cliente)\",\"\")","v":""}]
[]
[]
["Nombres  y Apellidos:",null,null,null,null,null,null,null,null,null,null,null,"N° documento de Identidad:",null,null,null,null,null,"Ext.:"]
[]
["Fecha de Nacimiento:",null,null,null,null,null,"Nacionalidad:",null,null,null,null,null,"País de Residencia:"]
[]
["Profesión / ocupación:",null,null,null,null,null,"Situación laboral:",null,null,null,null,null,"Ingreso Mensual:"]
[]
["Lugar de trabajo:",null,null,null,null,null,"Cargo:",null,null,null,null,null,"Fecha de ingreso al lugar de trabajo / inicio de actividad económica:"]
[]
["Estado Civil:",null,null,null,null,null,{"$f":"IF($D166=\"Casado(a)\",\"Nombre Cónyuge:\",\"\")","v":""},null,null,null,null,null,{"$f":"IF($D166=\"Casado(a)\",\"Actividad Económica Cónyuge:\",\"\")","v":""}]
[]
["Dirección domicilio:",null,null,null,null,null,null,null,null,null,null,null,"Dirección Laboral:"]
[]
["Teléfono Fijo / Celular:",null,null,null,null,null,"Correo electrónico:",null,null,null,null,null,"Teléfono laboral:"]
[]
["Referencia Personal:",null,null,null,null,null,null,null,null,null,null,null,"Teléfono Fijo / Celular:\n(De la Referencia)"]
[]
["Ref. Comercial, laboral o bancaria: (**)",null,null,null,null,null,null,null,null,null,null,null,"Teléfono Fijo / Celular:\n(De la Referencia)"]
[]
["DILIGENCIA ADICIONAL:",null,null,"¿Es portador de tarjeta verde, pasaporte norteamericano, nacido o hijo de ciudadano de los Estados Unidos de Norteamérica?",null,null,null,null,null,null,"INFORMACIÓN ADICIONAL DE CLIENTE PEP:",null,"¿El representante legal es Persona Expuesta Políticamente (PEP)?"]
[]
[null,null,null,"¿Ha permanecido más de 180 días en un año o promedio de 120 días al año durante los últimos 3 años en los Estados Unidos de Norteamérica?"]
[]
[]
["REPRESENTANTE LEGAL 5",null,null,null,"¿El Representante Legal ya es cliente del Banco?  ",null,null,null,null,null,"Número de Cliente ",null,null,null,{"$f":"IF(J181=\"Sí\",\"(este campo puede ser de llenado manual por Servicio al Cliente)\",\"\")","v":""}]
[]
[]
["Nombres  y Apellidos:",null,null,null,null,null,null,null,null,null,null,null,"N° documento de Identidad:",null,null,null,null,null,"Ext.:"]
[]
["Fecha de Nacimiento:",null,null,null,null,null,"Nacionalidad:",null,null,null,null,null,"País de Residencia:"]
[]
["Profesión / ocupación:",null,null,null,null,null,"Situación laboral:",null,null,null,null,null,"Ingreso Mensual:"]
[]
["Lugar de trabajo:",null,null,null,null,null,"Cargo:",null,null,null,null,null,"Fecha de ingreso al lugar de trabajo / inicio de actividad económica:"]
[]
["Estado Civil:",null,null,null,null,null,{"$f":"IF($D192=\"Casado(a)\",\"Nombre Cónyuge:\",\"\")","v":""},null,null,null,null,null,{"$f":"IF($D192=\"Casado(a)\",\"Actividad Económica Cónyuge:\",\"\")","v":""}]
[]
["Dirección domicilio:",null,null,null,null,null,null,null,null,null,null,null,"Dirección Laboral:"]
[]
["Teléfono Fijo / Celular:",null,null,null,null,null,"Correo electrónico:",null,null,null,null,null,"Teléfono laboral:"]
[]
["Referencia Personal:",null,null,null,null,null,null,null,null,null,null,null,"Teléfono Fijo / Celular:\n(De la Referencia)"]
[]
["Ref. Comercial, laboral o bancaria: (**)",null,null,null,null,null,null,null,null,null,null,null,"Teléfono Fijo / Celular:\n(De la Referencia)"]
[]
["DILIGENCIA ADICIONAL:",null,null,"¿Es portador de tarjeta verde, pasaporte norteamericano, nacido o hijo de ciudadano de los Estados Unidos de Norteamérica?",null,null,null,null,null,null,"INFORMACIÓN ADICIONAL DE CLIENTE PEP:",null,"¿El representante legal es Persona Expuesta Políticamente (PEP)?"]
[]
[null,null,null,"¿Ha permanecido más de 180 días en un año o promedio de 120 días al año durante los últimos 3 años en los Estados Unidos de Norteamérica?"]
[]
[]
["REPRESENTANTE LEGAL 6",null,null,null,"¿El Representante Legal ya es cliente del Banco?  ",null,null,null,null,null,"Número de Cliente ",null,null,null,{"$f":"IF(J207=\"Sí\",\"(este campo puede ser de llenado manual por Servicio al Cliente)\",\"\")","v":""}]
[]
[]
["Nombres  y Apellidos:",null,null,null,null,null,null,null,null,null,null,null,"N° documento de Identidad:",null,null,null,null,null,"Ext.:"]
[]
["Fecha de Nacimiento:",null,null,null,null,null,"Nacionalidad:",null,null,null,null,null,"País de Residencia:"]
[]
["Profesión / ocupación:",null,null,null,null,null,"Situación laboral:",null,null,null,null,null,"Ingreso Mensual:"]
[]
["Lugar de trabajo:",null,null,null,null,null,"Cargo:",null,null,null,null,null,"Fecha de ingreso al lugar de trabajo / inicio de actividad económica:"]
[]
["Estado Civil:",null,null,null,null,null,{"$f":"IF($D218=\"Casado(a)\",\"Nombre Cónyuge:\",\"\")","v":""},null,null,null,null,null,{"$f":"IF($D218=\"Casado(a)\",\"Actividad Económica Cónyuge:\",\"\")","v":""}]
[]
["Dirección domicilio:",null,null,null,null,null,null,null,null,null,null,null,"Dirección Laboral:"]
[]
["Teléfono Fijo / Celular:",null,null,null,null,null,"Correo electrónico:",null,null,null,null,null,"Teléfono laboral:"]
[]
["Referencia Personal:",null,null,null,null,null,null,null,null,null,null,null,"Teléfono Fijo / Celular:\n(De la Referencia)"]
[]
["Ref. Comercial, laboral o bancaria: (**)",null,null,null,null,null,null,null,null,null,null,null,"Teléfono Fijo / Celular:\n(De la Referencia)"]
[]
["DILIGENCIA ADICIONAL:",null,null,"¿Es portador de tarjeta verde, pasaporte norteamericano, nacido o hijo de ciudadano de los Estados Unidos de Norteamérica?",null,null,null,null,null,null,"INFORMACIÓN ADICIONAL DE CLIENTE PEP:",null,"¿El representante legal es Persona Expuesta Políticamente (PEP)?"]
[]
[null,null,null,"¿Ha permanecido más de 180 días en un año o promedio de 120 días al año durante los últimos 3 años en los Estados Unidos de Norteamérica?"]
[]
["(*) En caso de requerirse filas adicionales para el registro de más Representantes Legales, se debe completar el anexo \"Nómina Rep. Legal\" adjunto al presente formulario."]
["(**) En caso que el Representante Legal sea de nacionalidad extranjera \"con residencia\" en Bolivia registrar una segunda referencia (comercial, laboral o bancaria)."]
[]
["INFORMACIÓN PRODUCTOS SOLICITADOS"]
[]
[null,null,null,"Tipo de cuenta: ",null,null,"Moneda: ",null,null,"Administración:",null,null,"Monto mensual de la(s) cuenta(s) (en Bs):",null,null,"Motivo de la apertura de la(s) cuenta(s)"]
["Solicitud 1:",null,null,null,null,null,null,null,null,null,null,null,null,null,null,"Completar de forma detalla: p.ej. \"Apertura para realizar el pago a proveedores de la empresa\""]
["Solicitud 2:"]
["Solicitud 3:"]
[]
[]
["SERVICIOS ADICIONALES REQUERIDOS:",null,null,"Banca electrónica (e-Bisa):",null,null,"Tarjeta de Débito:",null,null,"Chequera:",null,null,"QR:"]
[null,null,null," Marcar con una \"X\". En caso de seleccionar cualquier servicio adicional, se debe completar el formulario de solicitud e-Bisa, formulario de administración de tarjeta de débito y/o chequera, según corresponda."]
[]
["INFORMACIÓN DE LA EMPRESA (Contactos e Información Adicional):"]
[]
[]
["PERSONAS DE CONTACTO EN LA EMPRESA"]
[]
[null,null,null,"Contacto 1",null,null,null,null,null,null,null,"Contacto 2"]
["Nombre persona de contacto:"]
["Cargo:",null,null,null,null,null,"Nacionalidad:",null,null,null,null,null,null,null,"Nacionalidad:"]
["Teléfono fijo o móvil:"]
[]
[]
["INFORMACIÓN ADICIONAL DE LA EMPRESA (Seleccione “SI” o “NO” para completar la información, según corresponda):"]
[]
[]
[null,"¿Su empresa es subsidiaria de una empresa constituida en EEUU?"]
[]
[null,"¿Su empresa tiene Representantes Legales estadounidenses o socios y accionistas, que en última instancia llegan a tener participación accionaria o societaria igual o mayor al 10% del capital social de la empresa, o miembros que ostentan el control de la persona jurídica, que sean ciudadanos, residentes o portadores de pasaporte norteamericano?"]
[]
[null,"¿Su empresa cotiza en Bolsa o forma parte de una Corporación Internacional que cotiza en Bolsa? Debe registrar la Bolsa en la que cotiza y el código correspondiente.",null,null,null,null,null,null,null,{"$f":"IF(I264=\"Sí\",\"Nombre de la Bolsa:\",\"\")","v":""},null,null,null,null,null,{"$f":"IF(I264=\"Sí\",\"Código\",\"\")","v":""}]
[]
[null,"¿Su empresa es Estatal, ya sea del Estado Boliviano o de un estado extranjero?"]
[]
[null,"¿La empresa es una Entidad Financiera no norteamericana? Debe registrar necesariamente el número global de identificación del intermediario (GIIN), en caso de no proporcionarnos el código GIIN, no se podrá abrir la cuenta.",null,null,null,null,null,null,null,{"$f":"IF(I268=\"Sí\",\"GIIN:\",\"\")","v":""}]
[]
[null,"En caso de seleccionar por lo menos una de las cinco opciones mencionadas con \"Sí\", se debe adjuntar al presente, el formulario W8-BEN-E debidamente llenado y firmado por el represente legal y el formulario de Diligencia Adicional debidamente llenado por cada socio, accionista con participación accionaria o societaria igual o mayor al 10% del capital social de esta empresa o miembro y representante legal de la empresa."]
[]
[]
["AUTORIZACIONES "]
[]
[null,"Autorizo (Autorizamos) al Banco Bisa S.A. en calidad de Representante Legal de la empresa a remitir toda la información que la Internal Revenue Service – IRS (Administración de Rentas Internas) de los Estados Unidos de América, requiera bajo el alcance de la Ley - FATCA - de Cumplimiento Fiscal de Cuentas en el Extranjero (Foreign Account Tax Compliance Act), con relación al movimiento y saldos de cuentas que la empresa mantiene en su institución bancaria. La presente autorización la otorgo bajo el alcance y permisión establecida en el Art. 472 de la Ley de Servicios Financieros del Estado Plurinacional de Bolivia, sobre el derecho de reserva y confidencialidad."]
[]
[null,"\nAsimismo, autorizo (autorizamos) al Banco BISA S.A. a solicitar en cualquier momento, información personal y de la entidad a la que represento (representamos) de instituciones y agencias de control y/o de supervisión así como de otras fuentes que estime necesarias. Sólo en caso de requerir un sobregiro en cuenta corriente, autorizo (autorizamos) al Banco a realizar la consulta en la Central de Información Crediticia (CIC) de la Autoridad de Supervisión del Sistema Financiero (ASFI) y al informe confidencial del Buro de Información (BI) que corresponda."]
[]
[null,"Conforme al Art. 50 del Instructivo Específico para EIF de la UIF, autorizo(autorizamos) de manera expresa a la Entidad a compartir mis(nuestros) datos y documentos con las empresas del Grupo BISA, exclusivamente para fines de prevención de LGI/FT y FPADM, bajo estrictas medidas de confidencialidad.\n\nEn caso de tener retenciones judiciales registradas: habiendo sido informado sobre el motivo y monto de la retención y que de continuar con la apertura de la cuenta los fondos que ingresen a la misma serán retenidos hasta cubrir el importe correspondiente a la retención, autorizo (autorizamos) continuar con el proceso para la apertura de la cuenta."]
[null,"Yo (nosotros) como titular(es) de la cuenta en Euros, en caso de que el Banco no tenga disponibilidad inmediata en Euros al momento de solicitar el retiro de fondos de la indicada cuenta, acepto(mos) recibir el importe que corresponda en bolivianos utilizando la cotización referencial del Euro en Bolivianos, según la publicación diaria del Banco Central de Bolivia (BCB) o dólares estadounidenses al tipo de cambio vigente a la fecha del retiro. "]
[]
["INFORMACIÓN PARA EL CLIENTE"]
[]
[null,"Le recomendamos, realizar periodicamente la revisión del extracto de su cuenta para verificar sus transacciones. Asimismo, le informamos que el plazo para solicitar la revisión de transacciones no reconocidas o no satisfactorias, realizadas con Tarjeta de Débito por internet, debe efectuarse antes de los cien (100) días de realizada la transacción; dichas solicitudes pueden ser presentadas en los canales del Banco a su disposición (Página Web, Plataforma de atención al cliente o Bisa Responde).\n- No se deberá superar las 35 transacciones por cada solicitud presentada. \n- El plazo estipulado en el presente comunicado no aplica al Seguro de Protección de Tarjeta de Débito.  "]
[]
["REGISTRO DE FIRMAS"]
[]
[null,"La información proporcionada tiene carácter de declaración jurada, declaro(amos) que la información proporcionada es autentica y fidedigna."]
[]
[null,null,null,"Lugar:",null,null,null,null,null,null,null,"Fecha:",{"$f":"TODAY()","v":"2026-08-26"}]
[]
[]
[]
[]
[]
[]
[]
[]
[]
[]
[]
[]
[]
[]
[]
[]
[]
[null,"Firma Representante Legal  (1)",null,null,null,null,null,"Firma Representante Legal  (2)",null,null,null,null,null,"Firma Representante Legal  (3)"]
[null,{"$f":"D80","v":0},null,null,null,null,null,{"$f":"D106","v":0},null,null,null,null,null,{"$f":"D132","v":0}]
[null,"C.I.",{"$f":"O80&\" \"&T80","v":" "},null,null,null,null,"C.I.",{"$f":"O106&\" \"&T106","v":" "},null,null,null,null,"C.I.",{"$f":"O132&\" \"&T132","v":" "}]
[]
[null,"NOTA:  En caso de requerirse firmas adicionales, desplegar las filas siguientes presionando el símbolo \"+\" ubicado en la parte izquierda del formulario.  "]
[]
[]
[]
[]
[]
[]
[]
[]
[]
[]
[]
[]
[]
[]
[]
[null,"Firma Representante Legal  (4)",null,null,null,null,null,"Firma Representante Legal  (5)",null,null,null,null,null,"Firma Representante Legal  (6)"]
[null,{"$f":"D158","v":0},null,null,null,null,null,{"$f":"D184","v":0},null,null,null,null,null,{"$f":"D210","v":0}]
[null,"C.I.",{"$f":"O158&\" \"&T158","v":" "},null,null,null,null,"C.I.",{"$f":"O184&\" \"&T184","v":" "},null,null,null,null,"C.I.",{"$f":"O210&\" \"&T210","v":" "}]
[]
[]
["USO INTERNO DEL BANCO (esta sección puede ser de llenado manual):"]
[]
[null,"Código y nombre de Agencia origen de la apertura (p.ej. \"210 - Ag. Mutualista\")"]
[]
["FIRMA DE VERIFICACIÓN (USO EXCLUSIVO DEL BANCO)"]
[]
[]
[]
[]
[]
[]
[]
[]
[]
[]
[]
[]
[]
[null,null,"Firma y sello del Asistente responsable de la apertura de la(s) cuenta(s). ",null,null,null,null,null,null,null,null,"Firma y sello del Responsable del Sector:"]
[null,null,null,null,null,null,null,null,null,null,null,"Confirmo haber realizado la verificación de datos de la apertura de la cuenta."]

{"sheet":"Anexo Nóminas","index":1,"n_rows":35,"n_cols":21,"rows_kept":35,"cut":false,"hidden":false,"merged":[[34,1,34,20],[18,18,18,20],[22,8,23,8],[22,12,23,12],[18,1,18,5],[18,6,18,7],[18,13,18,14],[18,15,18,17],[22,1,23,2],[22,3,23,5],[22,6,23,6],[22,7,23,7],[22,9,23,9],[22,10,23,11],[22,13,23,15],[22,16,23,17],[22,18,23,19],[22,20,23,20],[24,18,24,19],[25,1,25,2],[25,3,25,5],[25,10,25,11],[25,13,25,15],[25,16,25,17],[15,18,15,20],[16,18,16,20],[17,1,17,5],[17,6,17,7],[17,13,17,14],[17,15,17,17],[15,1,15,5],[15,6,15,7],[15,13,15,14],[15,15,15,17],[16,1,16,5],[16,6,16,7],[16,13,16,14],[16,15,16,17],[17,18,17,20],[7,12,8,12],[7,9,7,11],[2,1,2,20],[4,1,4,20],[14,13,14,14],[14,15,14,17],[11,1,11,5],[11,6,11,7],[11,13,11,14],[11,15,11,17],[12,1,12,5],[12,6,12,7],[12,13,12,14],[12,15,12,17],[11,18,11,20],[12,18,12,20],[13,18,13,20],[14,18,14,20],[13,1,13,5],[13,6,13,7],[13,13,13,14],[13,15,13,17],[14,1,14,5],[14,6,14,7],[6,1,6,20],[19,1,19,20],[21,1,21,20],[1,0,1,21],[5,0,5,21],[20,0,20,21],[3,1,3,5],[3,6,3,20],[9,15,9,17],[9,18,9,20],[10,1,10,5],[10,6,10,7],[10,13,10,14],[10,15,10,17],[10,18,10,20],[7,8,8,8],[7,6,8,7],[7,1,8,5],[9,1,9,5],[9,6,9,7],[9,13,9,14],[7,18,8,20],[7,15,8,17],[7,13,8,14],[25,18,25,19],[26,1,26,2],[26,3,26,5],[26,10,26,11],[26,13,26,15],[26,16,26,17],[26,18,26,19],[24,1,24,2],[24,3,24,5],[24,10,24,11],[24,13,24,15],[24,16,24,17],[27,13,27,15],[27,16,27,17],[27,18,27,19],[28,1,28,2],[28,3,28,5],[28,10,28,11],[28,13,28,15],[28,16,28,17],[28,18,28,19],[27,1,27,2],[27,3,27,5],[27,10,27,11],[29,18,29,19],[30,1,30,2],[30,3,30,5],[30,10,30,11],[30,13,30,15],[30,16,30,17],[30,18,30,19],[31,1,31,2],[31,3,31,5],[31,10,31,11],[31,13,31,15],[31,16,31,17],[31,18,31,19],[29,1,29,2],[29,3,29,5],[29,10,29,11],[29,13,29,15],[29,16,29,17],[32,1,32,2],[32,3,32,5],[32,10,32,11],[32,13,32,15],[32,16,32,17],[32,18,32,19],[33,1,33,2],[33,3,33,5],[33,10,33,11],[33,13,33,15],[33,16,33,17],[33,18,33,19]]}
[]
["DATOS DEL CLIENTE:"]
[]
[null,"Razón social de la persona jurídica solicitante:",null,null,null,null,{"$f":"'Formulario Apertura'!C4","v":0}]
[]
["NÓMINA DE MIEMBROS DEL DIRECTORIO / PERSONAL EJECUTIVO:"]
[]
[null,"Nombre y Apellido",null,null,null,null,"Número de Documento de Identidad",null,"Ext.","Fecha de Nacimiento",null,null,"Nacionalidad","Actividad Económica",null,"Dirección Domicilio Particular",null,null,"Cargo"]
[null,null,null,null,null,null,null,null,null,"DD","MM","AAAA"]
[]
[]
[]
[]
[]
[]
[]
[]
[]
[]
[]
["NÓMINA DE SOCIOS, ACCIONISTAS,ASOCIADOS O MIEMBROS (*):"]
[]
[null,"Tipo de Persona",null,"Nombre y Apellido / Razón Social:",null,null,"Número de Documento de Identidad / NIT","Ext.","Fecha de vencimiento CI","Nacionalidad","Estado Civil (P.Natural) / \nTipo de Sociedad (P.Jurídica)",null,"Actividad \nEconómica","Dirección del Domicilio particular",null,null,"Tel. Domicilio o Celular",null,"% Participación",null,"Fecha de Nacimiento\n(dd/mm/aaaa)"]
[]
[]
[]
[]
[]
[]
[]
[]
[]
[]
[]
[null,"(*) En caso que el socio o accionista de la persona jurídica sea otra persona jurídica se debe adjuntar la nómina de socios, accionistas o miembros que en última instancia (persona natural) llegan a tener participación accionaria o societaria igual o mayor al 10% del capital social de esta empresa, o miembros que ostenten el control de la persona jurídica, indicando el nombre completo, número de documento de identidad y porcentaje de participación.\n(**) Se deberá obtener el \"Número de la matrícula de inscripción en el Registro de Comercio o registro en los Gobiernos Autónomos de los Departamentos o Municipios del Estado Plurinacional de Bolivia u otra documentación emitida por autoridad competente que acredite su existencia legal."]

{"sheet":"AUX","index":2,"n_rows":39,"n_cols":10,"rows_kept":39,"cut":false,"hidden":true,"merged":[[3,2,12,2]]}
["EXTENSIÓN","TIPO DE SOCIEDAD","Promedio de Movimiento","Moneda","Manejo de la cuenta","Tipo de Cuenta","Lugar","SI / NO","Ingresos (P. Nat)","PEP"]
["CSE","Sociedad Colectiva, Sociedad de Responsabilidad Limitada o Sociedad en Comandita Simple ","de USD 0 a USD 100,000.-","Bolivianos ","Indistinta ","Caja de Ahorro","La Paz","Sí","De 10 a 1000","Declaro tener o haber tenido en los últimos 5 años un cargo prominente en alguna entidad pública y/u Organizaciones del Estado (Ej. Viceministro, concejal, Miembro Directorio, Gerente)."]
["CBE","Sociedad Anónima o Sociedad en Comandita por Acciones","Mayores a USD 100,000.- ","Dólares Estadounidenses","Conjunta","Cuenta Corriente","El Alto","No","De 1.001 a 3.000","Declaro ser o haber sido una figura prominente de algún partido político o ejercer cargos diplomáticos de alto nivel, con designación oficial de un Estado distinto al boliviano."]
["CCB","Sociedad Anónima de Economía Mixta","Temporalmente sin uso, debido a que el campo de promedio, por instrucción de la UPC, será un campo abierto.","Euros","Individual",null,"Cochabamba",null,"De 3.001 a 5.000","Declaro haber desempeñado funciones prominentes como director, subdirector, miembro de la junta o cargos prominentes dentro de una organización internacional."]
["CCH","Sociedad Anónima en Formación ",null,{"$f":"IF('Formulario Apertura'!D238:F238=\"Caja de Ahorro\",\"MonedaCA\",IF('Formulario Apertura'!D238:F238=\"Cuenta Corriente\",\"MonedaCC\",\"\"))","v":""},"","","Santa Cruz",{"$f":"IF('Formulario Apertura'!Q4<>\"Sí\",\"Preguntas2\",\"Preguntas1\")","v":"Preguntas2"},"De 5.001 a 8.000","Declaro ser familiar de una persona PEP hasta el segundo grado de consanguinidad, segundo de afinidad o derivado de los vínculos de adopción."]
["CLP","Asociación Accidental o de Cuentas en Participación ",null,{"$f":"IF('Formulario Apertura'!D239:F239=\"Caja de Ahorro\",\"MonedaCA\",IF('Formulario Apertura'!D239:F239=\"Cuenta Corriente\",\"MonedaCC\",\"\"))","v":""},"","","Tarija",null,"De 8.001 a 10.000","Declaro ser una persona cercana a una persona considerada PEP (debido a que tengo la tuición de realizar operaciones bancarias y/o comerciales por montos considerables de dinero en nombre de esta persona PEP)"]
["COR","Empresa constituida en el exterior con representación en Bolivia ",null,{"$f":"IF('Formulario Apertura'!D240:F240=\"Caja de Ahorro\",\"MonedaCA\",IF('Formulario Apertura'!D240:F240=\"Cuenta Corriente\",\"MonedaCC\",\"\"))","v":""},"","","Sucre",null,"De 10.001 a 15.000","Declaro ser socio comercial, socio de negocios o de una Empresa (persona jurídica)  en la que una persona considerada PEP goza de una posición de control administrativo accionario o un interés económico."]
["CPA","Organización Social, Organización no Gubernamental (ONG), Fundación o Entidad Civil sin fines de lucro",null,null,null,null,"Oruro",null,"De 15.001 a 20.000"]
["CPO","Organización Religiosa y Espiritual",null,null,null,null,"Potosi",null,"De 20.001 a 50.000"]
["CSC","Cooperativa",null,null,null,null,"Beni",null,"De 50.001 a 80.000"]
["CTJ","Embajada",null,null,null,null,"Pando ",null,"De 80.001 a 100.000"]
["PAS","Banco del Exterior sin residencia en Bolivia",null,null,null,null,null,null,"De 100.000 a 300.000"]
["CEE","Organización Económica Comunitaria",null,null,null,null,null,null,"Mayor a 300.000"]
["CEX"]
["DCR"]
["DCC"]
["DCO"]
["Nro Accionistas / Directores","ESTADO CIVIL","Código y versión","Tipo de Persona"]
[null,"Soltero(a)","M-231-02-A03 (V22)","Natural"]
[1,"Casado(a)",null,"Jurídica"]
[2,"Viudo(a)"]
[3,"Divorciado(a)"]
[4]
[5]
[6]
[7]
[8]
[9]
[10]
[11]
[12]
[13]
[14]
[15]
[16]
[17]
[18]
[19]
[20]

{"sheet":"Anexo Rep. Legal","index":3,"n_rows":129,"n_cols":19,"rows_kept":129,"cut":false,"hidden":false,"merged":[[128,1,128,4],[127,6,127,8],[128,6,128,8],[127,10,127,13],[128,10,128,13],[127,15,127,18],[128,15,128,18],[116,15,125,18],[116,10,125,13],[116,6,125,8],[116,1,125,4],[126,1,126,4],[126,6,126,8],[126,10,126,13],[126,15,126,18],[4,0,4,18],[2,0,2,18],[6,0,6,3],[6,4,6,8],[6,10,6,11],[6,12,6,13],[8,0,8,19],[9,0,9,2],[127,1,127,4],[110,0,110,18],[111,1,111,18],[112,0,112,18],[113,3,113,5],[113,11,113,13],[9,3,9,11],[9,12,9,13],[9,14,9,17],[10,0,10,19],[11,0,11,2],[11,6,11,7],[11,8,11,11],[11,12,11,13],[11,14,11,19],[12,0,12,19],[13,0,13,2],[13,3,13,5],[13,6,13,7],[13,8,13,11],[13,12,13,13],[13,14,13,19],[14,0,14,19],[15,0,15,2],[15,3,15,5],[15,6,15,7],[15,8,15,11],[15,12,15,16],[20,0,20,19],[21,0,21,2],[21,12,21,13],[21,14,21,19],[22,0,22,19],[23,0,23,2],[23,3,23,11],[23,12,23,13],[23,14,23,19],[21,3,21,5],[21,6,21,7],[21,8,21,11],[73,14,73,19],[73,3,73,5],[73,6,73,7],[73,8,73,11],[25,3,25,11],[25,12,25,13],[25,14,25,19],[26,0,26,19],[27,0,29,2],[27,3,27,8],[27,10,29,11],[27,12,27,17],[27,18,27,19],[29,3,29,8],[29,12,29,19],[65,14,65,19],[66,0,66,19],[67,0,67,2],[67,3,67,5],[67,6,67,7],[67,8,67,11],[69,3,69,5],[69,6,69,7],[69,8,69,11],[69,12,69,13],[69,14,69,19],[105,0,107,2],[105,3,105,8],[105,10,107,11],[105,12,105,17],[105,18,105,19],[107,3,107,8],[107,12,107,19],[81,12,81,19],[82,0,82,19],[83,0,83,19],[84,0,84,3],[84,4,84,8],[84,10,84,11],[84,12,84,13],[85,0,85,19],[86,0,86,19],[72,0,72,19],[73,0,73,2],[73,12,73,13],[91,8,91,11],[91,12,91,13],[91,14,91,19],[108,0,108,19],[100,0,100,19],[101,0,101,2],[101,3,101,11],[101,12,101,13],[101,14,101,19],[102,0,102,19],[103,0,103,2],[103,3,103,11],[103,12,103,13],[103,14,103,19],[16,0,16,19],[17,0,17,2],[17,3,17,5],[17,6,17,7],[17,8,17,11],[17,12,17,13],[17,14,17,19],[18,0,18,19],[104,0,104,19],[97,0,97,2],[97,3,97,11],[97,12,97,13],[97,14,97,19],[98,0,98,19],[99,0,99,2],[99,12,99,13],[99,14,99,19],[79,0,81,2],[79,3,79,8],[79,10,81,11],[79,12,79,17],[79,18,79,19],[81,3,81,8],[74,0,74,19],[19,0,19,2],[19,3,19,11],[19,12,19,13],[19,14,19,19],[36,0,36,19],[37,0,37,2],[37,6,37,7],[37,8,37,11],[37,12,37,13],[37,14,37,19],[30,0,30,19],[31,0,31,19],[32,0,32,3],[32,4,32,8],[32,10,32,11],[32,12,32,13],[33,0,33,19],[34,0,34,19],[35,0,35,2],[35,3,35,11],[35,12,35,13],[35,14,35,17],[24,0,24,19],[25,0,25,2],[38,0,38,19],[39,0,39,2],[39,3,39,5],[39,6,39,7],[39,8,39,11],[39,12,39,13],[39,14,39,19],[40,0,40,19],[41,0,41,2],[41,3,41,5],[41,6,41,7],[41,8,41,11],[41,12,41,16],[42,0,42,19],[43,0,43,2],[43,3,43,5],[46,0,46,19],[47,0,47,2],[47,12,47,13],[47,14,47,19],[48,0,48,19],[43,6,43,7],[43,8,43,11],[43,12,43,13],[43,14,43,19],[44,0,44,19],[45,0,45,2],[45,3,45,11],[45,12,45,13],[45,14,45,19],[47,3,47,5],[47,6,47,7],[47,8,47,11],[49,0,49,2],[49,3,49,11],[49,12,49,13],[49,14,49,19],[50,0,50,19],[56,0,56,19],[57,0,57,19],[58,0,58,3],[58,4,58,8],[58,10,58,11],[58,12,58,13],[51,0,51,2],[51,3,51,11],[51,12,51,13],[51,14,51,19],[52,0,52,19],[53,0,55,2],[53,3,53,8],[53,10,55,11],[53,12,53,17],[53,18,53,19],[55,3,55,8],[55,12,55,19],[59,0,59,19],[60,0,60,19],[61,0,61,2],[61,3,61,11],[61,12,61,13],[61,14,61,17],[62,0,62,19],[63,0,63,2],[63,6,63,7],[63,8,63,11],[63,12,63,13],[63,14,63,19],[64,0,64,19],[65,0,65,2],[65,3,65,5],[65,6,65,7],[65,8,65,11],[65,12,65,13],[70,0,70,19],[71,0,71,2],[78,0,78,19],[75,0,75,2],[75,3,75,11],[75,12,75,13],[75,14,75,19],[76,0,76,19],[77,0,77,2],[77,3,77,11],[77,12,77,13],[77,14,77,19],[71,3,71,11],[71,12,71,13],[71,14,71,19],[67,12,67,16],[68,0,68,19],[69,0,69,2],[99,3,99,5],[99,6,99,7],[99,8,99,11],[96,0,96,19],[87,0,87,2],[87,3,87,11],[87,12,87,13],[87,14,87,17],[89,0,89,2],[89,6,89,7],[89,8,89,11],[89,12,89,13],[89,14,89,19],[1,0,1,20],[5,0,5,20],[7,0,7,20],[109,0,109,20],[3,0,3,4],[3,5,3,19],[92,0,92,19],[93,0,93,2],[93,3,93,5],[93,6,93,7],[93,8,93,11],[93,12,93,16],[94,0,94,19],[95,0,95,2],[95,3,95,5],[95,6,95,7],[95,8,95,11],[95,12,95,13],[95,14,95,19],[88,0,88,19],[90,0,90,19],[91,0,91,2],[91,3,91,5],[91,6,91,7]]}
[]
["DATOS DEL CLIENTE:"]
[]
["Razón social de la persona jurídica solicitante:",null,null,null,null,{"$f":"'Formulario Apertura'!C4","v":0}]
[]
[]
["REPRESENTANTE LEGAL 7",null,null,null,"¿El Representante Legal ya es cliente del Banco?  ",null,null,null,null,null,"Número de Cliente "]
[]
[]
["Nombres  y Apellidos:",null,null,null,null,null,null,null,null,null,null,null,"N° documento de Identidad:",null,null,null,null,null,"Ext.:"]
[]
["Fecha de Nacimiento:",null,null,null,null,null,"Nacionalidad:",null,null,null,null,null,"País de Residencia:"]
[]
["Profesión / ocupación:",null,null,null,null,null,"Situación laboral:",null,null,null,null,null,"Ingreso Mensual:"]
[]
["Lugar de trabajo:",null,null,null,null,null,"Cargo:",null,null,null,null,null,"Fecha de ingreso al lugar de trabajo / inicio de actividad económica:"]
[]
["Estado civil ",null,null,null,null,null,{"$f":"IF(D18=\"Casado(a)\",\"Nombre Cónyuge:\",\"\")","v":""},null,null,null,null,null,{"$f":"IF(D18=\"Casado(a)\",\"Actividad Económica Cónyuge:\",\"\")","v":""}]
[]
["Dirección domicilio:",null,null,null,null,null,null,null,null,null,null,null,"Dirección Laboral:"]
[]
["Teléfono Fijo / Celular:",null,null,null,null,null,"Correo electrónico:",null,null,null,null,null,"Teléfono laboral:"]
[]
["Referencia Personal:",null,null,null,null,null,null,null,null,null,null,null,"Teléfono Fijo / Celular:\n(De la Referencia)"]
[]
["Ref. Comercial, laboral o bancaria: (**)",null,null,null,null,null,null,null,null,null,null,null,"Teléfono Fijo / Celular:\n(De la Referencia)"]
[]
["DILIGENCIA ADICIONAL:",null,null,"¿Es portador de tarjeta verde, pasaporte norteamericano, nacido o hijo de ciudadano de los Estados Unidos de Norteamérica?",null,null,null,null,null,null,"INFORMACIÓN ADICIONAL DE CLIENTE PEP:",null,"¿El representante legal es Persona Expuesta Políticamente (PEP)?"]
[]
[null,null,null,"¿Ha permanecido más de 180 días en un año o promedio de 120 días al año durante los últimos 3 años en los Estados Unidos de Norteamérica?"]
[]
[]
["REPRESENTANTE LEGAL 8",null,null,null,"¿El Representante Legal ya es cliente del Banco?  ",null,null,null,null,null,"Número de Cliente "]
[]
[]
["Nombres  y Apellidos:",null,null,null,null,null,null,null,null,null,null,null,"N° documento de Identidad:",null,null,null,null,null,"Ext.:"]
[]
["Fecha de Nacimiento:",null,null,null,null,null,"Nacionalidad:",null,null,null,null,null,"País de Residencia:"]
[]
["Profesión / ocupación:",null,null,null,null,null,"Situación laboral:",null,null,null,null,null,"Ingreso Mensual:"]
[]
["Lugar de trabajo:",null,null,null,null,null,"Cargo:",null,null,null,null,null,"Fecha de ingreso al lugar de trabajo / inicio de actividad económica:"]
[]
["Estado civil ",null,null,null,null,null,{"$f":"IF(D44=\"Casado(a)\",\"Nombre Cónyuge:\",\"\")","v":""},null,null,null,null,null,{"$f":"IF(D44=\"Casado(a)\",\"Actividad Económica Cónyuge:\",\"\")","v":""}]
[]
["Dirección domicilio:",null,null,null,null,null,null,null,null,null,null,null,"Dirección Laboral:"]
[]
["Teléfono Fijo / Celular:",null,null,null,null,null,"Correo electrónico:",null,null,null,null,null,"Teléfono laboral:"]
[]
["Referencia Personal:",null,null,null,null,null,null,null,null,null,null,null,"Teléfono Fijo / Celular:\n(De la Referencia)"]
[]
["Ref. Comercial, laboral o bancaria: (**)",null,null,null,null,null,null,null,null,null,null,null,"Teléfono Fijo / Celular:\n(De la Referencia)"]
[]
["DILIGENCIA ADICIONAL:",null,null,"¿Es portador de tarjeta verde, pasaporte norteamericano, nacido o hijo de ciudadano de los Estados Unidos de Norteamérica?",null,null,null,null,null,null,"INFORMACIÓN ADICIONAL DE CLIENTE PEP:",null,"¿El representante legal es Persona Expuesta Políticamente (PEP)?"]
[]
[null,null,null,"¿Ha permanecido más de 180 días en un año o promedio de 120 días al año durante los últimos 3 años en los Estados Unidos de Norteamérica?"]
[]
[]
["REPRESENTANTE LEGAL 9",null,null,null,"¿El Representante Legal ya es cliente del Banco?  ",null,null,null,null,null,"Número de Cliente "]
[]
[]
["Nombres  y Apellidos:",null,null,null,null,null,null,null,null,null,null,null,"N° documento de Identidad:",null,null,null,null,null,"Ext.:"]
[]
["Fecha de Nacimiento:",null,null,null,null,null,"Nacionalidad:",null,null,null,null,null,"País de Residencia:"]
[]
["Profesión / ocupación:",null,null,null,null,null,"Situación laboral:",null,null,null,null,null,"Ingreso Mensual:"]
[]
["Lugar de trabajo:",null,null,null,null,null,"Cargo:",null,null,null,null,null,"Fecha de ingreso al lugar de trabajo / inicio de actividad económica:"]
[]
["Estado civil ",null,null,null,null,null,{"$f":"IF(D70=\"Casado(a)\",\"Nombre Cónyuge:\",\"\")","v":""},null,null,null,null,null,{"$f":"IF(D70=\"Casado(a)\",\"Actividad Económica Cónyuge:\",\"\")","v":""}]
[]
["Dirección domicilio:",null,null,null,null,null,null,null,null,null,null,null,"Dirección Laboral:"]
[]
["Teléfono Fijo / Celular:",null,null,null,null,null,"Correo electrónico:",null,null,null,null,null,"Teléfono laboral:"]
[]
["Referencia Personal:",null,null,null,null,null,null,null,null,null,null,null,"Teléfono Fijo / Celular:\n(De la Referencia)"]
[]
["Ref. Comercial, laboral o bancaria: (**)",null,null,null,null,null,null,null,null,null,null,null,"Teléfono Fijo / Celular:\n(De la Referencia)"]
[]
["DILIGENCIA ADICIONAL:",null,null,"¿Es portador de tarjeta verde, pasaporte norteamericano, nacido o hijo de ciudadano de los Estados Unidos de Norteamérica?",null,null,null,null,null,null,"INFORMACIÓN ADICIONAL DE CLIENTE PEP:",null,"¿El representante legal es Persona Expuesta Políticamente (PEP)?"]
[]
[null,null,null,"¿Ha permanecido más de 180 días en un año o promedio de 120 días al año durante los últimos 3 años en los Estados Unidos de Norteamérica?"]
[]
[]
["REPRESENTANTE LEGAL 10",null,null,null,"¿El Representante Legal ya es cliente del Banco?  ",null,null,null,null,null,"Número de Cliente "]
[]
[]
["Nombres  y Apellidos:",null,null,null,null,null,null,null,null,null,null,null,"N° documento de Identidad:",null,null,null,null,null,"Ext.:"]
[]
["Fecha de Nacimiento:",null,null,null,null,null,"Nacionalidad:",null,null,null,null,null,"País de Residencia:"]
[]
["Profesión / ocupación:",null,null,null,null,null,"Situación laboral:",null,null,null,null,null,"Ingreso Mensual:"]
[]
["Lugar de trabajo:",null,null,null,null,null,"Cargo:",null,null,null,null,null,"Fecha de ingreso al lugar de trabajo / inicio de actividad económica:"]
[]
["Estado civil ",null,null,null,null,null,{"$f":"IF(D96=\"Casado(a)\",\"Nombre Cónyuge:\",\"\")","v":""},null,null,null,null,null,{"$f":"IF(D96=\"Casado(a)\",\"Actividad Económica Cónyuge:\",\"\")","v":""}]
[]
["Dirección domicilio:",null,null,null,null,null,null,null,null,null,null,null,"Dirección Laboral:"]
[]
["Teléfono Fijo / Celular:",null,null,null,null,null,"Correo electrónico:",null,null,null,null,null,"Teléfono laboral:"]
[]
["Referencia Personal:",null,null,null,null,null,null,null,null,null,null,null,"Teléfono Fijo / Celular:\n(De la Referencia)"]
[]
["Ref. Comercial, laboral o bancaria: (**)",null,null,null,null,null,null,null,null,null,null,null,"Teléfono Fijo / Celular:\n(De la Referencia)"]
[]
["DILIGENCIA ADICIONAL:",null,null,"¿Es portador de tarjeta verde, pasaporte norteamericano, nacido o hijo de ciudadano de los Estados Unidos de Norteamérica?",null,null,null,null,null,null,"INFORMACIÓN ADICIONAL DE CLIENTE PEP:",null,"¿El representante legal es Persona Expuesta Políticamente (PEP)?"]
[]
[null,null,null,"¿Ha permanecido más de 180 días en un año o promedio de 120 días al año durante los últimos 3 años en los Estados Unidos de Norteamérica?"]
[]
["REGISTRO DE FIRMAS"]
[]
[null,"La información proporcionada tiene carácter de declaración jurada, declaro(amos) que la información proporcionada es autentica y fidedigna."]
[]
[null,null,"Lugar:",null,null,null,null,null,null,null,"Fecha:",{"$f":"TODAY()","v":"2026-08-26"}]
[]
[]
[]
[]
[]
[]
[]
[]
[]
[]
[]
[]
[null,"Representante Legal (7)",null,null,null,null,"Representante Legal (8)",null,null,null,"Representante Legal (9)",null,null,null,null,"Representante Legal (10)"]
[null,{"$f":"D10","v":0},null,null,null,null,{"$f":"D36","v":0},null,null,null,{"$f":"D62","v":0},null,null,null,null,{"$f":"D88","v":0}]
[null,{"$f":"O10&\" \"&T10","v":" "},null,null,null,null,{"$f":"O36&\" \"&T36","v":" "},null,null,null,{"$f":"O62&\" \"&T62","v":" "},null,null,null,null,{"$f":"O88&\" \"&T88","v":" "}]

{"sheet":"Anexo de Conformidad","index":4,"n_rows":23,"n_cols":23,"rows_kept":23,"cut":false,"hidden":true,"merged":[[22,1,22,11],[21,14,21,24],[22,14,22,24],[1,0,1,25],[2,0,2,25],[3,0,3,25],[4,0,4,25],[5,0,5,25],[7,3,7,5],[7,22,7,24],[9,1,20,11],[9,14,20,24],[21,1,21,11]]}
[]
["AUTORIZACIONES "]
[{"$f":"'Formulario Apertura'!B278","v":0}]
[{"$f":"'Formulario Apertura'!B279","v":"Conforme al Art. 50 del Instructivo Específico para EIF de la UIF, autorizo(autorizamos) de manera expresa a la Entidad a compartir mis(nuestros) datos y documentos con las empresas del Grupo BISA, exclusivamente para fines de prevención de LGI/FT y FPADM, bajo estrictas medidas de confidencialidad.\n\nEn caso de tener retenciones judiciales registradas: habiendo sido informado sobre el motivo y monto de la retención y que de continuar con la apertura de la cuenta los fondos que ingresen a la misma serán retenidos hasta cubrir el importe correspondiente a la retención, autorizo (autorizamos) continuar con el proceso para la apertura de la cuenta."}]
[{"$f":"'Formulario Apertura'!#REF!","v":{"$error":"#REF!"}}]
["REGISTRO DE FIRMAS"]
[]
[null,{"$f":"'Formulario Apertura'!D290","v":"Lugar:"},null,null,null,null,null,null,null,null,null,null,null,null,null,null,null,null,null,{"$f":"'Formulario Apertura'!L290","v":"Fecha:"},null,null,{"$f":"'Formulario Apertura'!M290","v":"2026-08-26"}]
[]
[]
[]
[]
[]
[]
[]
[]
[]
[]
[]
[]
[]
[null,{"$f":"'Formulario Apertura'!B308","v":"Firma Representante Legal  (1)"},null,null,null,null,null,null,null,null,null,null,null,null,{"$f":"'Formulario Apertura'!H308","v":"Firma Representante Legal  (2)"}]
[null,{"$f":"IF('Formulario Apertura'!D80=\"\",\"\",'Formulario Apertura'!B80)","v":""}]